lending/lending_fUSD_20240807
["ID","MTS","AMOUNT","RATE_DAILY","PERIOD"]
[334375409,1723000256830,-3539.36,0.00010958,2]
[334375410,1723000256839,-73569.14,0.00010958,2]
[334375411,1723000256849,-3539.36,0.00010958,2]
[334375412,1723000256858,-4275.77,0.00010958,2]
[334375413,1723000256868,-73569.14,0.00010958,2]
[334375414,1723000256877,-3539.36,0.00010958,2]
[334375415,1723000256887,-4275.77,0.00010958,2]
[334375416,1723000256896,-73569.14,0.00010958,2]
[334375417,1723000256906,-3539.36,0.00010958,2]
[334375418,1723000256915,-4275.77,0.00010958,2]
[334375419,1723000256925,-73569.14,0.00010958,2]
[334375420,1723000256934,-4275.77,0.00010958,2]
[334375421,1723000256943,-3539.36,0.00010958,2]
[334375422,1723000256952,-73569.14,0.00010958,2]
[334375423,1723000256962,-4275.77,0.00010958,2]
[334375424,1723000256971,-3539.36,0.00010958,2]
[334375425,1723000256980,-73569.14,0.00010958,2]
[334375426,1723000256990,-4275.77,0.00010958,2]
[334375427,1723000256999,-3539.36,0.00010958,2]
[334375428,1723000257008,-73569.14,0.00010958,2]
[334375429,1723000257018,-3539.36,0.00010958,2]
[334375430,1723000257027,-3539.36,0.00010958,2]
[334375431,1723000257038,-3008.23121377,0.00010958,2]
[334375432,1723000257302,-1625.4560258,0.00010958,2]
[334375433,1723000257314,-625.27091789,0.00010958,2]
[334375434,1723000257326,-515.56383828,0.00010958,2]
[334375435,1723000257337,-582.83643837,0.00010958,2]
[334375436,1723000257349,-1462.79404271,0.00010958,2]
[334375437,1723000257361,-1182.8,0.00010958,2]
[334375438,1723000257575,-357.69482547,0.00010958,2]
[334375439,1723000257587,-276.6182,0.00010958,2]
[334375440,1723000257598,-63931.87449771,0.00010958,2]
[334375441,1723000257607,-3539.36,0.00010958,2]
[334375442,1723000257617,-73569.14,0.00010958,2]
[334375443,1723000257627,-3539.36,0.00010958,2]
[334375444,1723000257637,-73569.14,0.00010958,2]
[334375445,1723000257648,-3539.36,0.00010958,2]
[334375446,1723000257659,-73569.14,0.00010958,2]
[334375447,1723000257668,-73569.14,0.00010958,2]
[334375448,1723000257678,-3539.36,0.00010958,2]
[334375449,1723000257687,-50375.13697127,0.00010958,2]
[334375450,1723000257699,-13021.08964048,0.00010958,2]
[334375451,1723000257711,-507.53028692,0.00010958,2]
[334375452,1723000257722,-1160.60801783,0.00010958,2]
[334375453,1723000257735,-266.2784645,0.00010958,2]
[334375454,1723000257748,-8238.51292597,0.00010958,2]
[334375455,1723000257758,-3539.36,0.00010958,2]
[334375456,1723000257768,-3539.36,0.00010958,2]
[334375457,1723000257778,-3539.36,0.00010958,2]
[334375458,1723000257794,-2786.22492683,0.00010958,2]
[334375459,1723000257805,-590.0,0.00010958,2]
[334375460,1723000257817,-163.13507317,0.00010958,2]
[334375461,1723000257828,-156.19611274,0.00010958,2]
[334375462,1723000257861,-423.95581672,0.00010958,2]
[334375463,1723000257873,-2959.20807054,0.00010958,2]
[334375464,1723000257882,-3539.50851055,0.00010958,2]
[334375465,1723000257892,-4275.77,0.00010958,2]
[334375466,1723000257902,-4275.77,0.00010958,2]
[334375467,1723000257912,-4275.77,0.00010958,2]
[334375468,1723000257921,-4275.77,0.00010958,2]
[334375469,1723000257930,-6000.91,0.00010958,2]
[334375470,1723000257940,-4275.77,0.00010958,2]
[334375471,1723000257949,-6000.91,0.00010958,2]
[334375472,1723000257959,-6000.91,0.00010958,2]
[334375473,1723000257968,-4275.77,0.00010958,2]
[334375474,1723000257978,-6000.91,0.00010958,2]
[334375475,1723000257987,-4275.77,0.00010958,2]
[334375476,1723000257996,-6000.91,0.00010958,2]
[334375477,1723000258005,-4275.77,0.00010958,2]
[334375478,1723000258015,-6000.91,0.00010958,2]
[334375479,1723000258024,-4275.77,0.00010958,2]
[334375480,1723000258034,-6000.91,0.00010958,2]
[334375481,1723000258044,-4275.77,0.00010958,2]
[334375482,1723000258053,-4275.77,0.00010958,2]
[334375483,1723000258062,-6000.91,0.00010958,2]
[334375484,1723000258072,-4275.77,0.00010958,2]
[334375485,1723000258082,-4275.77,0.00010958,2]
[334375486,1723000258091,-6000.91,0.00010958,2]
[334375487,1723000258101,-4275.77,0.00010958,2]
[334375488,1723000258110,-6000.91,0.00010958,2]
[334375489,1723000258121,-4275.77,0.00010958,2]
[334375490,1723000258130,-6000.91,0.00010958,2]
[334375491,1723000258140,-4275.77,0.00010958,2]
[334375492,1723000258149,-6000.91,0.00010958,2]
[334375493,1723000258159,-4275.77,0.00010958,2]
[334375494,1723000258168,-6000.91,0.00010958,2]
[334375495,1723000258178,-4275.99606856,0.00010958,2]
[334375496,1723000258187,-6000.91,0.00010958,2]
[334375497,1723000258197,-6000.91,0.00010958,2]
[334375498,1723000258207,-6000.91,0.00010958,2]
[334375499,1723000258216,-6000.91,0.00010958,2]
[334375500,1723000258226,-6000.91,0.00010958,2]
[334375501,1723000258235,-6000.91,0.00010958,2]
[334375502,1723000258245,-6000.91,0.00010958,2]
[334375503,1723000258254,-6000.91,0.00010958,2]
[334375504,1723000258266,-4568.95,0.00010958,2]
[334375505,1723000258276,-6000.91,0.00010958,2]
[334375506,1723000258287,-4568.95,0.00010958,2]
[334375507,1723000258297,-6000.91,0.00010958,2]
[334375508,1723000258307,-4568.95,0.00010958,2]
[334375509,1723000258317,-6001.0600876,0.00010958,2]
[334375510,1723000258327,-4568.95,0.00010958,2]
[334375511,1723000258337,-4568.95,0.00010958,2]
[334375512,1723000258347,-4568.95,0.00010958,2]
[334375513,1723000258358,-4568.95,0.00010958,2]
[334375514,1723000258368,-4568.95,0.00010958,2]
[334375515,1723000258379,-4568.95,0.00010958,2]
[334375516,1723000258388,-4568.95,0.00010958,2]
[334375517,1723000258399,-4568.95,0.00010958,2]
[334375518,1723000258409,-4568.95,0.00010958,2]
[334375519,1723000258419,-9257.0,0.00010959,2]
[334375520,1723000258429,-2000.0,0.00010959,2]
[334375521,1723000258439,-17259.24,0.00010959,2]
[334375522,1723000258450,-250.0,0.00010959,2]
[334375523,1723000258460,-390.17,0.00010959,2]
[334375524,1723000258470,-325.14,0.00010959,2]
[334375525,1723000258480,-270.95,0.00010959,2]
[334375526,1723000258490,-225.8,0.00010959,2]
[334375527,1723000258500,-188.16,0.00010959,2]
[334375528,1723000258509,-156.8,0.00010959,2]
[334375529,1723000258518,-784.04,0.00010959,2]
[334375530,1723000258527,-428.362934,0.00010959,2]
[334375531,1723000258538,-428.362934,0.00010959,2]
[334375532,1723000258548,-428.362934,0.00010959,2]
[334375533,1723000258557,-428.362934,0.00010959,2]
[334375534,1723000258567,-428.362934,0.00010959,2]
[334375535,1723000258577,-428.362934,0.00010959,2]
[334375536,1723000258587,-428.362934,0.00010959,2]
[334375537,1723000258596,-428.362934,0.00010959,2]
[334375538,1723000258606,-428.362934,0.00010959,2]
[334375539,1723000258616,-428.362934,0.00010959,2]
[334375540,1723000258625,-428.362934,0.00010959,2]
[334375541,1723000258635,-428.362934,0.00010959,2]
[334375542,1723000258648,-428.362934,0.00010959,2]
[334375543,1723000258658,-428.362934,0.00010959,2]
[334375544,1723000258667,-428.362934,0.00010959,2]
[334375545,1723000258678,-428.362934,0.00010959,2]
[334375546,1723000258687,-428.362934,0.00010959,2]
[334375547,1723000258696,-428.362934,0.00010959,2]
[334375548,1723000258705,-428.362934,0.00010959,2]
[334375549,1723000258715,-428.362927,0.00010959,2]
[334375550,1723000258725,-150.0,0.00010959,2]
[334375551,1723000258734,-190.924,0.00010963,2]
[334375552,1723000258743,-151.477,0.00010963,2]
[334375553,1723000258753,-261.19,0.00010963,2]
[334375554,1723000258762,-186.779,0.00010963,2]
[334375555,1723000258771,-150.0,0.00010963,2]
[334375556,1723000258781,-161.641,0.00010963,2]
[334375557,1723000258791,-150.809,0.00010963,2]
[334375558,1723000258802,-200.0,0.00010973,2]
[334375559,1723000258811,-150.215105,0.00010976,2]
[334375560,1723000258820,-150.215105,0.00010976,2]
[334375561,1723000258830,-173.814186,0.00010976,2]
[334375562,1723000258839,-173.814186,0.00010976,2]
[334375563,1723000258848,-173.814186,0.00010976,2]
[334375564,1723000258859,-173.814186,0.00010976,2]
[334375565,1723000258868,-270.116625,0.00010976,2]
[334375566,1723000258878,-173.814186,0.00010976,2]
[334375567,1723000258888,-270.116625,0.00010976,2]
[334375568,1723000258897,-173.814186,0.00010976,2]
[334375569,1723000258907,-270.116625,0.00010976,2]
[334375570,1723000258916,-270.116625,0.00010976,2]
[334375571,1723000258926,-270.116625,0.00010976,2]
[334375572,1723000258936,-270.116625,0.00010976,2]
[334375573,1723000258946,-150.215105,0.00010981,2]
[334375574,1723000258956,-150.215105,0.00010981,2]
[334375575,1723000258966,-173.814186,0.00010981,2]
[334375576,1723000258976,-173.814186,0.00010981,2]
[334375577,1723000258987,-173.814186,0.00010981,2]
[334375578,1723000258996,-173.814186,0.00010981,2]
[334375579,1723000259007,-270.116625,0.00010981,2]
[334375580,1723000259017,-270.116625,0.00010981,2]
[334375581,1723000259026,-270.116625,0.00010981,2]
[334375582,1723000259037,-270.116625,0.00010981,2]
[334375583,1723000259046,-47456.0780042,0.00010992,2]
[334375584,1723000259056,-51521.9668704,0.00010992,2]
[334375585,1723000259066,-55587.8557366,0.00010992,2]
[334375586,1723000259076,-59653.7446027,0.00010992,2]
[334375587,1723000259087,-12407.3385374,0.00010992,2]
[334375588,1723000259096,-13557.1187818,0.00010992,2]
[334375589,1723000259106,-14706.8990262,0.00010992,2]
[334375590,1723000259235,-15856.6792707,0.00010992,2]
[334375591,1723000259248,-5802.5738109,0.00010992,2]
[334375592,1723000259258,-5227.2164513,0.00010992,2]
[334375593,1723000259269,-4651.8590917,0.00010992,2]
[334375594,1723000259279,-4076.5017321,0.00010992,2]
[334375595,1723000259291,-3501.1443724,0.00010992,2]
[334375596,1723000259301,-327.5531154,0.00010992,2]
[334375597,1723000259311,-295.0744083,0.00010992,2]
[334375598,1723000259321,-262.5957011,0.00010992,2]
[334375599,1723000259331,-230.1169939,0.00010992,2]
[334375600,1723000259342,-197.6382867,0.00010992,2]
[334375601,1723000259353,-150.215105,0.00010994,2]
[334375602,1723000259363,-150.215105,0.00010994,2]
[334375603,1723000259374,-173.814186,0.00010994,2]
[334375604,1723000259384,-173.814186,0.00010994,2]
[334375605,1723000259394,-270.116625,0.00010994,2]
[334375606,1723000259404,-173.814186,0.00010994,2]
[334375607,1723000259415,-270.116625,0.00010994,2]
[334375608,1723000259426,-173.814186,0.00010994,2]
[334375609,1723000259435,-270.116625,0.00010994,2]
[334375610,1723000259446,-173.814186,0.00010994,2]
[334375611,1723000259456,-173.814186,0.00010994,2]
[334375612,1723000259467,-173.814186,0.00010994,2]
[334375613,1723000259477,-270.116625,0.00010994,2]
[334375614,1723000259487,-270.116625,0.00010994,2]
[334375615,1723000259499,-270.116625,0.00010994,2]
[334375616,1723000259509,-270.116625,0.00010994,2]
[334375617,1723000259523,-5552.16217161,0.00010997,2]
[334375618,1723000259533,-3000.0,0.00010999,2]
[334375619,1723000259544,-3000.0,0.00010999,2]
[334375620,1723000259554,-3000.0,0.00010999,2]
[334375621,1723000259564,-16399.52974863,0.00010999,2]
[334375622,1723000259574,-3000.0,0.00010999,2]
[334375623,1723000259584,-3000.0,0.00010999,2]
[334375624,1723000259594,-464676.79795628,0.00011,2]
[334375625,1723000259604,-959476.67426367,0.00011,2]
[334375626,1723000259614,-838126.89577439,0.00011,2]
[334375627,1723000259628,-305666.87422243,0.00011,2]
[334375628,1723000260351,-18404.41337965,0.00011,2]
[334375629,1723000260363,-8673.86875784,0.00011,2]
[334375630,1723000260374,-8320.67319668,0.00011,2]
[334375631,1723000260387,-36229.64737597,0.00011,2]
[334375632,1723000260684,-158.51534584,0.00010858,2]
[334375633,1723000260695,-452.0400486,0.000109,2]
[334375634,1723000260708,-4.18228473,0.000109,2]
[334375635,1723000260719,-210.82033843,0.00010957,2]
[334375636,1723000260732,-3834.15828948,0.00010957,2]
[334375637,1723000260744,-694.0,0.00010958,2]
[334375638,1723000260754,-4568.95,0.00010958,2]
[334375639,1723000260764,-4568.95,0.00010958,2]
[334375640,1723000260774,-4568.95,0.00010958,2]
[334375641,1723000260784,-4568.95,0.00010958,2]
[334375642,1723000260802,-2090.99303176,0.00010958,2]
[334375643,1723000260814,-362.68407531,0.00010958,2]
[334375644,1723000260841,-6076.4704,0.00010358,2]
[334375645,1723000260853,-487.94323696,0.00010358,2]
[334375646,1723000260864,-1527.525,0.00010358,2]
[334375647,1723000260875,-356.07572503,0.00010358,2]
[334375648,1723000260886,-495.16662698,0.00010358,2]
[334375649,1723000260898,-2515.79092737,0.00010358,2]
[334375651,1723000260908,-382.311957,0.00010358,2]
[334375652,1723000260950,-19177.31952666,0.00010358,2]
[334375653,1723000260960,-2115.27289293,0.00010958,2]
[334375654,1723000260969,-3640.04389586,0.00010958,2]
[334375655,1723000260980,-928.90610414,0.00010958,2]
[334375656,1723000260991,-1328.15,0.00010958,2]
[334375657,1723000261001,-2944.22077304,0.00010958,2]
[334375658,1723000261012,-1624.72922696,0.00010958,2]
[334375659,1723000261023,-1328.15,0.00010958,2]
[334375660,1723000261032,-4568.95,0.00010958,2]
[334375661,1723000261048,-1328.15,0.00010958,2]
[334375662,1723000261058,-1328.15,0.00010958,2]
[334375663,1723000261068,-4568.95,0.00010958,2]
[334375664,1723000261078,-1328.15,0.00010958,2]
[334375665,1723000261088,-2130.4479792,0.00010958,2]
[334375666,1723000261101,-2438.5020208,0.00010958,2]
[334375667,1723000261112,-131.91691188,0.00010958,2]
[334375668,1723000261755,263.4468,9.523e-05,2]
[334375672,1723000270882,1197.43,8.466e-05,2]
[334375746,1723000515421,160.11,9.197e-05,2]
[334375751,1723000641670,1000.0,9.197e-05,2]
[334375752,1723000719090,162.69,0.00021589,30]
[334375753,1723000720774,2006.41,0.00024657,30]
[334375756,1723000757296,1200.22,8.219e-05,2]
[334375757,1723000810121,1705.37847537,8.219e-05,2]
[334375758,1723000812136,155.42002478,8.219e-05,2]
[334375759,1723000818451,250.0,9.355e-05,2]
[334375760,1723000843564,297.54,9.389e-05,2]
[334375761,1723000843668,1284.33399062,8.219e-05,2]
[334375762,1723000845114,1223.05007541,8.219e-05,2]
[334375781,1723000884096,739.19,9.197e-05,2]
[334375782,1723000898198,6436.65,9.292e-05,2]
[334375784,1723000921611,154.15,7.456e-05,2]
[334375785,1723000931136,733.07,9.352e-05,2]
[334375786,1723001008094,23900.0,9.378e-05,2]
[334375788,1723001035288,176.88,9.378e-05,2]
[334375789,1723001055593,924.16,9.371e-05,2]
[334375790,1723001116450,200.0,9.332e-05,2]
[334375791,1723001153356,2540.88,9.371e-05,2]
[334375792,1723001154233,1492.38,9.371e-05,2]
[334375793,1723001157409,172.8,9.41e-05,2]
[334375796,1723001201339,162.69,0.00021589,30]
[334375798,1723001252444,992.86,9.37e-05,2]
[334375799,1723001260597,755.68,9.445e-05,2]
[334375803,1723001290915,1000.0,9.394e-05,2]
[334375809,1723001337428,228.83,9.419e-05,2]
[334375811,1723001351387,250.0,9.197e-05,2]
[334375835,1723001390605,1199.75,8.219e-05,2]
[334375843,1723001431991,485.65,9.425e-05,2]
[334375849,1723001432575,-170.58,9.741e-05,2]
[334375850,1723001432585,-300.0,9.887e-05,2]
[334375851,1723001432595,-300.0,9.887e-05,2]
[334375852,1723001432605,-150.0,9.887e-05,2]
[334375856,1723001432615,-150.0,9.888e-05,2]
[334375860,1723001432624,-37430.38682885,9.888e-05,2]
[334375864,1723001432633,-778.4692,9.907e-05,2]
[334375868,1723001432643,-201.3774,9.908e-05,2]
[334375872,1723001432653,-178.74,9.954e-05,2]
[334375876,1723001432663,-1332.5861725,9.99e-05,2]
[334375879,1723001432672,-150.99,9.998e-05,2]
[334375882,1723001432682,-1550.0,0.0001,2]
[334375885,1723001432691,-3589.77,0.0001,2]
[334375888,1723001432700,-921.3,0.0001,2]
[334375891,1723001432710,-19663.29041446,0.0001,2]
[334375899,1723001432977,-4776.29766075,0.0001,2]
[334375900,1723001432989,-1075.43,0.0001,2]
[334375901,1723001433001,-10469.08038897,0.0001,2]
[334375902,1723001433012,-6509.84,0.0001,2]
[334375903,1723001433023,-209.73165941,0.0001,2]
[334375904,1723001433035,-10658.37855162,0.00010007,2]
[334375905,1723001433047,-4723.87144838,0.00010007,2]
[334375906,1723001433057,-499.99,0.00010007,2]
[334375907,1723001433067,-15480.0451,0.00010008,2]
[334375908,1723001433077,-999.99,0.00010008,2]
[334375909,1723001433087,-299.99,0.00010027,2]
[334375910,1723001433096,-150.99,0.00010027,2]
[334375911,1723001433106,-2358.18,0.00010028,2]
[334375912,1723001433115,-834.77,0.00010055,2]
[334375913,1723001433125,-372.3487,0.00010158,2]
[334375914,1723001433134,-1000.0,0.00010158,2]
[334375915,1723001433143,-1901.50393263,0.00010166,2]
[334375916,1723001433153,-1901.50393264,0.00010166,2]
[334375917,1723001433162,-487.83284183,0.00010218,2]
[334375918,1723001433171,-3253.2068,0.00010258,2]
[334375919,1723001433180,-392184.4624,0.00010258,2]
[334375920,1723001433189,-246.98322774,0.00010258,2]
[334375921,1723001433199,-6024.2715,0.00010318,2]
[334375922,1723001433208,-4289.745,0.00010318,2]
[334375923,1723001433218,-2041.4817,0.00010318,2]
[334375924,1723001433228,-53298.4484,0.00010358,2]
[334375925,1723001433237,-34708.5824,0.00010358,2]
[334375926,1723001433246,-4790.7992,0.00010358,2]
[334375927,1723001433255,-5832.6465,0.00010358,2]
[334375928,1723001433265,-324.8314,0.00010358,2]
[334375929,1723001433275,-487.83284181,0.00010389,2]
[334375930,1723001433286,-10000.0,0.0001042,2]
[334375931,1723001433295,-1199.75,0.00010446,2]
[334375932,1723001433305,-176.88,0.00010551,2]
[334375933,1723001433315,-487.83284181,0.00010559,2]
[334375934,1723001433324,-1000.0,0.00010568,2]
[334375935,1723001433334,-487.83284181,0.0001073,2]
[334375936,1723001433344,-160.11,0.0001073,2]
[334375937,1723001433354,-12817.79331306,0.000108,2]
[334375938,1723001433364,-168.8587113,0.000108,2]
[334375939,1723001433373,-300.0,0.00010848,2]
[334375940,1723001433382,-384.5678538,0.0001085,2]
[334375941,1723001433392,-200.0,0.00010873,2]
[334375942,1723001433402,-420.0,0.00010875,2]
[334375943,1723001433412,-420.0,0.00010875,2]
[334375944,1723001433422,-255.0,0.00010875,2]
[334375945,1723001433431,-2945.89313,0.0001089,2]
[334375946,1723001433442,-167.03104432,0.00010897,2]
[334375947,1723001433452,-384.5678538,0.00010899,2]
[334375948,1723001433464,-718.0,0.000109,2]
[334375949,1723001433475,-1645.86262867,0.000109,2]
[334375950,1723001433487,-2345.32183811,0.000109,2]
[334375951,1723001433496,-146466.80066189,0.000109,2]
[334375952,1723001433508,-14694.3898551,0.000109,2]
[334375953,1723001433524,-270.03107511,0.000109,2]
[334375961,1723001439073,-1437.652988,0.0001042,2]
[334375962,1723001439365,-5342.2067365,0.0001042,2]
[334375963,1723001439375,-88985.16715328,0.000109,2]
[334375964,1723001439384,-485.88491179,0.000109,2]
[334375965,1723001439394,-156.4355,0.000109,2]
[334375966,1723001439403,-24.39005269,0.000109,2]
[334375967,1723001439915,-1136.98452958,0.000109,2]
[334376053,1723001440941,-803.45382807,0.000109,2]
[334376055,1723001440952,-350.3433359,0.000109,2]
[334376057,1723001440963,-3005.69831979,0.000109,2]
[334376059,1723001440974,-16040.5,0.000109,2]
[334376079,1723001441173,-850.96818909,0.000109,2]
[334376087,1723001443601,-4265.75,0.000109,2]
[334376091,1723001443808,-4000.0,0.000109,2]
[334376092,1723001443819,-5893.34352977,0.000109,2]
[334376093,1723001443830,-1067.08377648,0.000109,2]
[334376094,1723001443842,-1683.90293863,0.000109,2]
[334376095,1723001443851,-1315.75580467,0.000109,2]
[334376096,1723001443862,-294.6745,0.000109,2]
[334376097,1723001443873,-98389.56969533,0.000109,2]
[334376098,1723001443883,-1000.0,0.000109,2]
[334376099,1723001443892,-487.83284181,0.000109,2]
[334376100,1723001443901,-228.1111667,0.000109,2]
[334376101,1723001443910,-228.11116666,0.000109,2]
[334376102,1723001443919,-228.11116666,0.000109,2]
[334376103,1723001443928,-228.11116666,0.000109,2]
[334376104,1723001443937,-228.11116666,0.000109,2]
[334376105,1723001443946,-228.11116666,0.000109,2]
[334376106,1723001443955,-228.11116666,0.000109,2]
[334376107,1723001443964,-228.11116666,0.000109,2]
[334376108,1723001443973,-152.13,0.000109,2]
[334376109,1723001443982,-152.13,0.000109,2]
[334376110,1723001443991,-152.13,0.000109,2]
[334376111,1723001444001,-1596.5835528,0.000109,2]
[334376112,1723001444012,-152.13,0.00010948,2]
[334376113,1723001444025,-1000.0,0.00010957,2]
[334376114,1723001444036,-1000.0,0.00010957,2]
[334376115,1723001444048,-449.21766806,0.00010958,2]
[334376116,1723001444058,-313.71078531,0.00010958,2]
[334376117,1723001444069,-500.0,0.00010958,2]
[334376118,1723001444078,-364.81612259,0.00010958,2]
[334376119,1723001444088,-500.0,0.00010958,2]
[334376120,1723001444098,-500.0,0.00010958,2]
[334376121,1723001444108,-500.0,0.00010958,2]
[334376122,1723001444118,-500.0,0.00010958,2]
[334376123,1723001444128,-500.0,0.00010958,2]
[334376124,1723001444138,-500.0,0.00010958,2]
[334376125,1723001444149,-645.72696209,0.00010958,2]
[334376126,1723001444160,-935.41,0.00010958,2]
[334376127,1723001444170,-935.41,0.00010958,2]
[334376128,1723001444180,-935.41,0.00010958,2]
[334376129,1723001444189,-935.41,0.00010958,2]
[334376130,1723001444198,-500.0,0.00010958,2]
[334376131,1723001444208,-500.0,0.00010958,2]
[334376132,1723001444218,-150.93367813,0.00010958,2]
[334376133,1723001444227,-1045.95,0.00010958,2]
[334376134,1723001444236,-1045.95,0.00010958,2]
[334376135,1723001444245,-1045.95,0.00010958,2]
[334376136,1723001444254,-1045.95,0.00010958,2]
[334376137,1723001444265,-585.46763171,0.00010958,2]
[334376138,1723001444275,-5001.09,0.00010958,2]
[334376139,1723001444284,-5001.09,0.00010958,2]
[334376140,1723001444295,-5001.09,0.00010958,2]
[334376141,1723001444304,-5001.09,0.00010958,2]
[334376142,1723001444313,-500.0,0.00010958,2]
[334376143,1723001444323,-500.0,0.00010958,2]
[334376144,1723001444332,-500.0,0.00010958,2]
[334376145,1723001444343,-500.0,0.00010958,2]
[334376146,1723001444353,-500.0,0.00010958,2]
[334376147,1723001444363,-500.0,0.00010958,2]
[334376148,1723001444374,-500.0,0.00010958,2]
[334376149,1723001444385,-500.0,0.00010958,2]
[334376150,1723001444395,-500.0,0.00010958,2]
[334376151,1723001444404,-500.0,0.00010958,2]
[334376152,1723001444414,-500.0,0.00010958,2]
[334376153,1723001444424,-500.0,0.00010958,2]
[334376154,1723001444433,-250.0,0.00010959,2]
[334376155,1723001444443,-150.0,0.00010959,2]
[334376156,1723001444454,-2000.0,0.00010959,2]
[334376157,1723001444464,-551.0,0.00010973,2]
[334376158,1723001444474,-2705.553,0.00010973,2]
[334376159,1723001444485,-1151.0,0.00010973,2]
[334376160,1723001444495,-150.0,0.00010973,2]
[334376161,1723001444505,-1255.0,0.00010973,2]
[334376162,1723001444514,-5838.0,0.00010973,2]
[334376163,1723001444523,-5130.0,0.00010973,2]
[334376164,1723001444535,-1671.0,0.00010973,2]
[334376165,1723001444546,-1204.0,0.00010973,2]
[334376166,1723001444562,-21743.0,0.00010973,2]
[334376167,1723001444572,-150.0,0.00010973,2]
[334376168,1723001444581,-810.0,0.00010973,2]
[334376169,1723001444592,-150.0,0.00010986,2]
[334376170,1723001444602,-152.13,0.00010989,2]
[334376171,1723001444611,-2260.36970886,0.0001099,2]
[334376172,1723001444620,-152.13,0.0001099,2]
[334376173,1723001444630,-152.13,0.0001099,2]
[334376174,1723001444639,-152.13,0.0001099,2]
[334376175,1723001444649,-152.13,0.0001099,2]
[334376176,1723001444659,-152.13,0.0001099,2]
[334376177,1723001444669,-152.13,0.0001099,2]
[334376178,1723001444680,-152.13,0.0001099,2]
[334376179,1723001444689,-152.13,0.0001099,2]
[334376180,1723001444698,-152.13,0.0001099,2]
[334376181,1723001444708,-152.13,0.0001099,2]
[334376182,1723001444717,-152.13,0.0001099,2]
[334376183,1723001444726,-152.13,0.0001099,2]
[334376184,1723001444736,-152.13,0.0001099,2]
[334376185,1723001444746,-152.13,0.0001099,2]
[334376186,1723001444755,-152.13,0.0001099,2]
[334376187,1723001444765,-152.13,0.0001099,2]
[334376188,1723001444774,-152.13,0.0001099,2]
[334376189,1723001444783,-152.13,0.0001099,2]
[334376190,1723001444796,-152.13,0.0001099,2]
[334376191,1723001444806,-152.13,0.0001099,2]
[334376192,1723001444815,-152.13,0.0001099,2]
[334376193,1723001444825,-152.13,0.0001099,2]
[334376194,1723001444835,-152.13,0.0001099,2]
[334376195,1723001444844,-152.13,0.0001099,2]
[334376196,1723001444853,-152.13,0.0001099,2]
[334376197,1723001444863,-152.13,0.0001099,2]
[334376198,1723001444872,-152.13,0.0001099,2]
[334376199,1723001444882,-152.13,0.0001099,2]
[334376200,1723001444892,-152.13,0.0001099,2]
[334376201,1723001444901,-152.13,0.0001099,2]
[334376202,1723001444910,-152.13,0.0001099,2]
[334376203,1723001444920,-152.13,0.0001099,2]
[334376204,1723001444929,-152.13,0.0001099,2]
[334376205,1723001444938,-152.13,0.0001099,2]
[334376206,1723001444948,-152.13,0.0001099,2]
[334376207,1723001444957,-1002.18626592,0.00010997,2]
[334376208,1723001444967,-500.0,0.00010998,2]
[334376209,1723001444976,-935.41,0.00010998,2]
[334376210,1723001444986,-3456.7,0.00010998,2]
[334376211,1723001444995,-1045.95,0.00010998,2]
[334376212,1723001445004,-5001.09,0.00010998,2]
[334376213,1723001445014,-500.0,0.00010998,2]
[334376214,1723001445026,-6742.1370736,0.00010998,2]
[334376215,1723001445036,-500.0,0.00010998,2]
[334376216,1723001445051,-210.82033843,0.00010999,2]
[334376217,1723001445061,-1000.0,0.00010999,2]